[Event "Romanian Superleague 2022"]
[Site "Oradea"]
[Date "2022.09.21"]
[Round "1.17"]
[White "Manolache, Marius"]
[Black "David, Alexandru-Vasile"]
[Result "1/2-1/2"]
[ECO "D05"]
[WhiteElo "2455"]
[BlackElo "2417"]
[Annotator "TA"]
[PlyCount "106"]
[EventDate "2022.09.21"]
[EventType "team-tourn"]
[EventCountry "ROU"]
[SourceTitle "playchess.com"]
[Source "ChessBase"]
[SourceQuality "1"]
[TimeControl "40/5400+30:1800+30"]

{[%evp 9,106,7,7,7,12,0,10,0,0,-21,-12,-10,-11,-15,-4,-25,-21,-36,0,0,10,0,2,0,0,0,0,-9,-6,-6,20,16,25,0,8,8,12,2,10,6,0,0,0,0,32,29,34,29,36,15,28,15,25,15,22,8,29,29,30,6,18,20,47,22,29,0,0,-11,16,16,16,-73,-66,-73,-71,-129,-69,-56,-56,-49,-8,-12,0,-45,-27,-27,-31,-28,-27,-83,-64,-64,-65,-72,0,-27,-26,-31,-8]} 1. Nf3 {[%emt 0:00:07]} d5 {[%emt 0:01:02]} 2. e3 {[%emt 0:00:33]} Nf6 {[%emt 0:08:26]} 3. b3 {[%emt 0:00:43]} e6 {[%emt 0:02:09]} 4. Bb2 {[%emt 0:00:43]} Be7 {[%emt 0:00:22]} 5. d4 {[%emt 0:06:45]} O-O {[%emt 0:00:57]} 6. Nbd2 {[%emt 0:02:38] D05: Colle System with ...e6.} b6 {[%emt 0:05:41]} 7. Bd3 {[%emt 0:02:41]} Bb7 {[%emt 0:01:13]} 8. a3 {[%emt 0:12:08] The position is equal.} Nbd7 {[%emt 0:04:03]} 9. Ng5 {[%emt 0:06:38]} h6 {[%emt 0:23:54] [#]} (9... c5 {looks sharper.} 10. O-O Bd6 11. c4 Qe7) 10. Ngf3 $146 {[%emt 0:00:08]} ({Predecessor:} 10. h4 Re8 11. Qf3 c5 12. g4 Qc7 13. Nxf7 Kxf7 14. g5 c4 15. bxc4 dxc4 16. Be4 {1-0 (39) Delmar,E-Lipschuetz,S New York 1888}) 10... Ne4 {[%emt 0:02:18]} 11. Qe2 {[%emt 0:04:51]} Bd6 {[%emt 0:02:29]} 12. Bxe4 {[%emt 0:13:59]} dxe4 {[%emt 0:01:47]} 13. Ne5 {[%emt 0:00:31]} Nf6 {[%emt 0:07:30]} 14. O-O {[%emt 0:13:31]} Qe7 {[%emt 0:04:11]} 15. Rfd1 {[%emt 0:02:39]} Rad8 {[%emt 0:00:52]} 16. Nf1 {[%emt 0:04:38][%cal Bd2f1,Bf1g3,Bg3h5][%mdl 32]} Nh7 {[%emt 0:07:16]} 17. Ng3 {[%emt 0:06:18]} Qg5 {[%emt 0:00:47]} 18. Qh5 {[%emt 0:05:06]} Qxh5 {[%emt 0:03:02]} 19. Nxh5 {[%emt 0:00:04]} Bxe5 {[%emt 0:00:28]} 20. dxe5 {[%emt 0:00:06]} Rfe8 {[%emt 0:00:03]} 21. Kf1 {[%emt 0:02:19]} Nf8 {[%emt 0:00:49]} 22. Nf4 {[%emt 0:01:47]} Ng6 {[%emt 0:02:39]} 23. Nxg6 {[%emt 0:01:28]} fxg6 {[%emt 0:00:06]} 24. a4 {[%emt 0:01:20]} a5 {[%emt 0:02:50]} 25. Ke1 {[%emt 0:00:21]} Kf7 {[%emt 0:00:20]} 26. Rd4 {[%emt 0:01:33]} Rxd4 {[%emt 0:05:10]} 27. exd4 $11 {[%emt 0:00:29][%mdl 4096] Endgame KRB-KRB} g5 {[%emt 0:00:38]} 28. Ke2 {[%emt 0:00:07]} Kg6 {[%emt 0:00:59]} 29. Ke3 {[%emt 0:00:55]} Kf5 {[%emt 0:00:45]} 30. c4 {[%emt 0:02:30]} Rd8 {[%emt 0:01:40]} 31. Rd1 {[%emt 0:00:58]} Rd7 {[%emt 0:00:55]} 32. Bc3 {[%emt 0:02:02]} Bc6 {[%emt 0:00:56]} 33. h3 {[%emt 0:00:59]} h5 {[%emt 0:00:20]} 34. Ra1 {[%emt 0:00:39]} Rd8 {[%emt 0:02:12]} 35. Rg1 {[%emt 0:00:36]} Rh8 {[%emt 0:01:18]} 36. Rd1 {[%emt 0:00:18]} Rd8 {[%emt 0:00:05]} 37. Rc1 {[%emt 0:00:23]} g4 {[%emt 0:00:56]} 38. Rh1 {[%emt 0:00:14]} gxh3 {[%emt 0:01:12]} 39. Rxh3 {[%emt 0:00:10]} Rh8 {[%emt 0:00:43]} 40. Rh1 {[%emt 0:00:00]} (40. Rh4 $1 $11) 40... h4 $17 {[%emt 0:00:00][%cal Bh5h4,Bh4h3][%mdl 32]} 41. Rh2 {[%emt 0:25:09]} g5 {[%emt 0:02:57]} 42. Bb2 {[%emt 0:00:44]} (42. Bd2 $142) 42... Rh7 {[%emt 0:04:06]} (42... g4 $17 43. Ba3 Rh7) 43. Bc1 $15 {[%emt 0:01:21]} g4 {[%emt 0:14:00]} 44. Ke2 $1 {[%emt 0:01:33]} h3 {[%emt 0:00:56][%cal Oe4e3] [#] aiming for ...e3!} 45. Be3 {[%emt 0:00:12]} Bb7 {[%emt 0:00:29]} 46. Kd2 {[%emt 0:02:00]} c5 {[%emt 0:02:16]} 47. dxc5 {[%emt 0:00:37]} bxc5 {[%emt 0:00:06]} 48. Ke2 {[%emt 0:00:47]} Kxe5 {[%emt 0:02:49]} 49. gxh3 {[%emt 0:03:12]} (49. Kf1 $11) 49... gxh3 $17 {[%emt 0:01:18]} 50. Rh1 {[%emt 0:02:03]} Kd6 {[%emt 0:02:03]} ({Reject} 50... h2 51. Kf1 $11) 51. Rd1+ {[%emt 0:00:36]} Ke5 {[%emt 0:00:47]} 52. Rh1 {[%emt 0:02:11]} Bc6 {[%emt 0:01:28]} 53. Kf1 $1 {[%emt 0:00:07]} Kd6 {[%emt 0:06:06] Weighted Error Value: White=0.11 (very precise) /Black=0.11 (very precise)} 1/2-1/2

[Event "Romanian Superleague 2022"]
[Site "Oradea"]
[Date "2022.09.21"]
[Round "1.18"]
[White "Berescu, Alin-Mile"]
[Black "Antal, Hunor-Zoltan"]
[Result "1/2-1/2"]
[ECO "B90"]
[WhiteElo "2440"]
[BlackElo "2235"]
[Annotator "TA"]
[PlyCount "37"]
[EventDate "2022.09.21"]
[EventType "team-tourn"]
[EventCountry "ROU"]
[SourceTitle "playchess.com"]
[Source "ChessBase"]
[SourceQuality "1"]
[TimeControl "40/5400+30:1800+30"]

{[%evp 13,37,23,20,2,25,-22,-8,-19,59,-13,0,0,0,0,0,0,14,0,0,-65,-74,-74,-82,-61,14,25]} 1. e4 {[%emt 0:00:11]} c5 {[%emt 0:00:10]} 2. Nf3 {[%emt 0:00:22]} d6 {[%emt 0:00:23]} 3. d4 {[%emt 0:00:07]} cxd4 {[%emt 0:00:06]} 4. Nxd4 {[%emt 0:00:08]} Nf6 {[%emt 0:00:09]} 5. Nc3 {[%emt 0:00:34]} a6 {[%emt 0:00:40]} 6. Be3 {[%emt 0:02:41]} e5 {[%emt 0:00:56]} 7. Nb3 {[%emt 0:01:21]} Be6 {[%emt 0:01:45]} 8. h3 {[%emt 0:01:45] B90: Sicilian Najdorf: Unusual White 6th moves, 6 Be3 Ng4 and 6 Be3 e5.} Be7 {[%emt 0:13:31]} 9. Qf3 {[%emt 0:04:25]} (9. f4 $142) 9... O-O $11 {[%emt 0:02:28]} 10. O-O-O {[%emt 0:01:50]} a5 {[%emt 0:04:00]} (10... b5 $11) 11. Bb5 {[%emt 0:13:25]} (11. Nc5 $1 $14) 11... Na6 {[%emt 0:13:15]} 12. Kb1 {[%emt 0:05:25]} Nc7 {[%emt 0:04:48]} 13. Bb6 {[%emt 0:13:46] [#]} Qb8 $146 {[%emt 0:01:47]} ({Predecessor:} 13... Nd7 14. Bxd7 Qxd7 15. Bxc7 Qxc7 16. Nd5 Qd8 17. Qd3 Ra6 18. Nd2 Rc6 19. Nc4 Bg5 {½-½ (30) Mohamad,E (2260)-Karavade,E (2400) Jakarta 2013}) 14. Bxc7 {[%emt 0:05:55]} ({Much weaker is} 14. Nxa5 Nxb5 15. Nxb5 Ra6 $17) 14... Qxc7 {[%emt 0:00:10]} 15. a3 {[%emt 0:03:14]} Rfc8 {[%emt 0:02:29][%cal Oa5a4]} 16. Qe3 {[%emt 0:17:21]} ({White should try} 16. a4 $11) 16... a4 $1 $15 {[%emt 0:23:02]} 17. Nc1 {[%emt 0:01:12]} Qa5 {[%emt 0:04:06][%cal Oc8c3] [#] Strongly threatening ...Rxc3!} 18. N1e2 {[%emt 0:02:15]} Rd8 {[%emt 0:08:55]} (18... Rc5 $15 19. Bd3 Rac8) 19. f4 {[%emt 0:09:44] Weighted Error Value: White=0.25 (precise) /Black=0.19 (very precise)} 1/2-1/2

[Event "Romanian Superleague 2022"]
[Site "Oradea"]
[Date "2022.09.21"]
[Round "1.19"]
[White "Sumets, Andrey"]
[Black "Pranav Vijay"]
[Result "1/2-1/2"]
[ECO "E32"]
[WhiteElo "2513"]
[BlackElo "2265"]
[Annotator "TA"]
[PlyCount "61"]
[EventDate "2022.09.21"]
[EventType "team-tourn"]
[EventCountry "ROU"]
[SourceTitle "playchess.com"]
[Source "ChessBase"]
[SourceQuality "1"]
[TimeControl "40/5400+30:1800+30"]

{[%evp 18,61,28,22,26,23,23,13,15,11,19,7,33,25,37,31,50,24,41,51,44,22,19,8,12,9,9,10,25,22,36,25,32,31,25,18,55,0,18,-14,-9,-9,-12,-4,-8,-16]} 1. d4 {[%emt 0:00:02]} Nf6 {[%emt 0:00:20]} 2. c4 {[%emt 0:00:05]} e6 {[%emt 0:00:14]} 3. Nc3 {[%emt 0:00:06]} Bb4 {[%emt 0:00:13]} 4. Qc2 {[%emt 0:00:04]} O-O {[%emt 0:00:16]} 5. a3 {[%emt 0:00:04]} Bxc3+ {[%emt 0:00:31]} 6. Qxc3 {[%emt 0:00:06]} Ne4 {[%emt 0:00:51]} 7. Qc2 {[%emt 0:00:07]} f5 {[%emt 0:00:07]} 8. Nh3 {[%emt 0:00:17]} d6 {[%emt 0:01:34]} 9. f3 {[%emt 0:00:29]} Nf6 {[%emt 0:00:09]} 10. e3 {[%emt 0:00:15]} e5 {[%emt 0:03:09] E32: Nimzo-Indian: Classical (4 Qc2): 4...0-0.} 11. Be2 {[%emt 0:07:55]} Nc6 {[%emt 0:04:27]} 12. d5 {[%emt 0:01:07]} Ne7 {[%emt 0:00:24]} 13. O-O {[%emt 0:04:18] [#]} a5 $146 {[%emt 0:07:17]} ({Predecessor:} 13... c5 14. dxc6 Nxc6 15. b4 h6 16. Nf2 Be6 17. Bb2 Qe7 18. Rfd1 Rad8 19. Rac1 Qf7 {1-0 (73) Sumets,A (2533)-Ferretti,F (2294) Playchess.com INT 2007}) 14. b3 {[%emt 0:00:48]} c6 {[%emt 0:20:08]} 15. dxc6 {[%emt 0:00:07]} Nxc6 {[%emt 0:00:17]} 16. Rd1 {[%emt 0:03:42]} Qe7 {[%emt 0:02:37]} 17. Qd2 {[%emt 0:08:23]} Rd8 {[%emt 0:02:03]} 18. Bb2 {[%emt 0:03:32]} d5 {[%emt 0:10:13]} 19. cxd5 {[%emt 0:03:31]} Nxd5 {[%emt 0:00:13]} 20. Bc4 {[%emt 0:00:40]} Be6 {[%emt 0:00:17][%cal Od5f4]} 21. Qe2 {[%emt 0:00:37]} h6 {[%emt 0:02:15]} 22. Nf2 {[%emt 0:10:13][%cal Bh3f2,Bf2e4,Be4c5][%mdl 32]} Bf7 {[%emt 0:11:57]} 23. Rac1 {[%emt 0:22:43]} Rac8 {[%emt 0:06:45]} 24. Re1 {[%emt 0:14:53]} Nf6 {[%emt 0:02:32]} 25. e4 {[%emt 0:02:58]} fxe4 {[%emt 0:05:47]} 26. Nxe4 {[%emt 0:00:11]} Nd5 {[%emt 0:00:09]} 27. g3 {[%emt 0:13:38] Prevents Nf4.} (27. Nf2 $14) 27... Nc7 {[%emt 0:12:57] The position is equal.} (27... Nd4 $5 {[%cal Rd4e2]} 28. Qf2 Nb6 $11) 28. Red1 {[%emt 0:01:12]} Ne6 {[%emt 0:00:48]} 29. Bxe6 {[%emt 0:00:33]} Qxe6 {[%emt 0:01:55]} 30. Nc5 {[%emt 0:00:06][%csl LRb7,LRe6]} Qe7 {[%emt 0:00:06]} 31. Qe3 {[%emt 0:00:55] Weighted Error Value: White=0.07 (flawless) /Black=0.06 (flawless)} 1/2-1/2

[Event "Romanian Superleague 2022"]
[Site "Oradea"]
[Date "2022.09.21"]
[Round "1.20"]
[White "Grigore, George-Gabriel"]
[Black "Cioara, Andrei-Nestor"]
[Result "1/2-1/2"]
[ECO "E36"]
[WhiteElo "2455"]
[BlackElo "2407"]
[Annotator "TA"]
[PlyCount "85"]
[EventDate "2022.09.21"]
[EventType "team-tourn"]
[EventCountry "ROU"]
[SourceTitle "playchess.com"]
[Source "ChessBase"]
[SourceQuality "1"]
[TimeControl "40/5400+30:1800+30"]

{[%evp 12,85,22,8,21,27,20,26,5,12,7,21,29,22,31,31,31,25,23,18,22,22,27,22,22,15,19,26,27,13,29,27,27,26,33,16,23,19,19,18,15,15,15,15,15,15,24,15,76,75,75,47,75,47,68,0,68,68,68,68,68,0,0,0,0,0,0,0,0,0,0,0,0,0,0,0]} 1. d4 {[%emt 0:00:05]} Nf6 {[%emt 0:00:06]} 2. c4 {[%emt 0:00:26]} e6 {[%emt 0:00:04]} 3. Nc3 {[%emt 0:00:05]} Bb4 {[%emt 0:00:03]} 4. Qc2 {[%emt 0:00:06]} O-O {[%emt 0:00:11]} 5. a3 {[%emt 0:00:13]} Bxc3+ {[%emt 0:00:04]} 6. Qxc3 {[%emt 0:00:04]} d5 {[%emt 0:00:15]} 7. Bg5 {[%emt 0:02:27]} dxc4 {[%emt 0:03:35] E36: Nimzo-Indian: Classical: 4...d5 5 a3.} 8. Qxc4 {[%emt 0:00:22]} b6 {[%emt 0:00:04]} 9. Rd1 {[%emt 0:00:19]} Ba6 {[%emt 0:03:52] White has an edge.} 10. Qa4 {[%emt 0:00:21]} h6 {[%emt 0:25:58] 10...h6 scores better than 10...Qd7.} 11. Bh4 {[%emt 0:02:39]} Qd7 {[%emt 0:01:57]} 12. Qc2 {[%emt 0:00:50]} Qc6 {[%emt 0:06:12]} 13. Qxc6 {[%emt 0:08:12]} Nxc6 {[%emt 0:00:06]} 14. Bxf6 {[%emt 0:00:09]} gxf6 {[%emt 0:00:04]} 15. Nf3 {[%emt 0:00:18] [#]} Na5 $146 {[%emt 0:55:29]} ({Predecessor:} 15... Rfd8 16. e3 Bb7 17. Bd3 Ne7 18. Ke2 c5 19. dxc5 bxc5 20. Rd2 Rab8 21. Rc1 Rdc8 {½-½ (90) Le,Q (2709)-Nakamura,H (2736) chess24.com INT 2021}) 16. e3 {[%emt 0:26:12]} Bxf1 {[%emt 0:00:00]} 17. Rxf1 {[%emt 0:01:09]} c5 {[%emt 0:00:00]} 18. Rc1 {[%emt 0:06:56]} Rfc8 {[%emt 0:00:00]} 19. Ke2 {[%emt 0:01:18]} Kf8 {[%emt 0:00:00]} 20. Rfd1 {[%emt 0:00:59]} Ke7 {[%emt 0:00:00]} 21. dxc5 {[%emt 0:12:39]} bxc5 {[%emt 0:00:00]} 22. Rc2 {[%emt 0:13:40]} Rab8 {[%emt 0:00:00]} 23. Nd2 {[%emt 0:00:14]} c4 {[%emt 0:00:00]} 24. Rdc1 {[%emt 0:01:42]} Rd8 {[%emt 0:00:00]} 25. Nxc4 {[%emt 0:03:15]} Nxc4 {[%emt 0:00:00][%mdl 64] [#] Remove Defender} 26. Rxc4 {[%emt 0:00:06] aiming for b4.} Rxb2+ {[%emt 0:00:00]} 27. R1c2 {[%emt 0:00:07]} Rxc2+ {[%emt 0:00:00]} 28. Rxc2 $11 {[%emt 0:19:37][%mdl 4096] Endgame KR-KR} Rd7 29. g4 {[%emt 0:00:00]} Rb7 {[%emt 0:00:00]} (29... h5 $11 {keeps the balance.}) 30. Rc5 {[%emt 0:00:00]} Kf8 {[%emt 0:00:00]} 31. h4 {[%emt 0:00:00]} Rd7 {[%emt 0:00:00]} 32. f4 {[%emt 0:00:00]} Kg7 {[%emt 0:00:00][%cal Of6f5]} 33. a4 {[%emt 0:00:00]} ({Better is} 33. Ra5 $14) 33... Rb7 {[%emt 0:00:00]} (33... f5 $1 $11) 34. Kf3 {[%emt 0:00:00]} Rb4 {[%emt 0:00:00]} 35. Ra5 {[%emt 0:00:00]} Rb7 {[%emt 0:00:00]} 36. Ra6 {[%emt 0:00:00]} ({White should try} 36. h5 $14) 36... h5 $1 {[%emt 0:05:43] The position is equal.} 37. g5 {[%emt 0:00:00]} Kg6 {[%emt 0:04:02]} 38. gxf6 {[%emt 0:00:39]} Kxf6 {[%emt 0:00:15]} 39. Ra5 {[%emt 0:00:30]} Kg6 {[%emt 0:00:08]} 40. Rg5+ {[%emt 0:00:00]} Kh6 {[%emt 0:00:00]} 41. Ra5 {[%emt 0:03:00]} Kg6 {[%emt 0:01:46]} 42. Rg5+ {[%emt 0:06:28]} Kh6 {[%emt 0:00:01]} 43. Ra5 {[%emt 0:00:10] Weighted Error Value: White=0.07 (flawless) /Black=0.09 (flawless)} 1/2-1/2

[Event "Romanian Superleague 2022"]
[Site "Oradea"]
[Date "2022.09.21"]
[Round "1.21"]
[White "Stepanencu, Nicodim-Cosmin"]
[Black "Istratescu, Andrei"]
[Result "1/2-1/2"]
[ECO "C10"]
[WhiteElo "2289"]
[BlackElo "2408"]
[Annotator "TA"]
[PlyCount "48"]
[EventDate "2022.09.21"]
[EventType "team-tourn"]
[EventCountry "ROU"]
[SourceTitle "playchess.com"]
[Source "ChessBase"]
[SourceQuality "1"]
[TimeControl "40/5400+30:1800+30"]

{[%evp 12,48,61,50,67,55,59,43,43,42,76,77,74,41,47,33,41,24,62,38,43,38,42,41,45,43,35,36,35,26,36,27,31,10,10,3,0,0,5]} 1. e4 {[%emt 0:00:03]} e6 {[%emt 0:00:10]} 2. d4 {[%emt 0:00:05]} d5 {[%emt 0:00:03]} 3. Nc3 {[%emt 0:00:06]} dxe4 {[%emt 0:02:21]} 4. Nxe4 {[%emt 0:00:06]} Bd7 {[%emt 0:00:02]} 5. Nf3 {[%emt 0:03:51]} Bc6 {[%emt 0:01:16]} 6. Bd3 {[%emt 0:00:07]} Nd7 {[%emt 0:01:39]} 7. c3 {[%emt 0:03:27]} Bxe4 {[%emt 0:09:59] C10: French with 3 Nc3: Unusual Black 3rd moves and 3...dxe4.} 8. Bxe4 {[%emt 0:00:02]} c6 {[%emt 0:00:04]} 9. O-O {[%emt 0:15:49]} Ngf6 {[%emt 0:01:43] White is slightly better.} 10. Bc2 {[%emt 0:00:13]} g6 {[%emt 0:06:42]} 11. Re1 {[%emt 0:08:44]} Bg7 {[%emt 0:01:34] [#]} 12. Ng5 $146 {[%emt 0:00:24]} ({Predecessor:} 12. Bg5 O-O 13. Qd2 Qb6 14. a3 a5 15. Ne5 Nxe5 16. dxe5 Ng4 17. Be7 Rfe8 18. Bd6 {½-½ (24) Sevian,S (2603)-Akesson,R (2417) Stockholm 2016}) 12... O-O {[%emt 0:04:54]} 13. Qf3 {[%emt 0:05:54]} Re8 {[%emt 0:08:26]} 14. h4 {[%emt 0:16:50][%cal Oh4h5]} Nf8 {[%emt 0:33:43]} 15. g3 {[%emt 0:21:42] White is much more active. The black rooks are badly placed.} h6 {[%emt 0:04:12]} 16. Ne4 {[%emt 0:03:04]} Nxe4 {[%emt 0:01:28]} 17. Rxe4 {[%emt 0:01:51]} ({Much weaker is} 17. Qxe4 e5 $15) 17... Nd7 {[%emt 0:01:52][%cal Bf8d7,Bd7f6,Bf6g4][%mdl 32]} 18. Bf4 {[%emt 0:05:43]} Nf6 {[%emt 0:06:22]} 19. Re2 {[%emt 0:00:08]} Qd5 {[%emt 0:02:46]} 20. Qd3 {[%emt 0:02:47]} Qd7 {[%emt 0:03:28]} 21. Be5 {[%emt 0:04:09]} h5 {[%emt 0:00:32]} 22. Qf3 {[%emt 0:04:31]} Ng4 {[%emt 0:00:41] The position is equal.} 23. Bxg7 {[%emt 0:01:48]} Kxg7 {[%emt 0:00:04]} 24. Qf4 {[%emt 0:00:19]} Rad8 {[%emt 0:00:49] Weighted Error Value: White=0.10 (very precise) /Black=0.07 (flawless)} 1/2-1/2

[Event "Romanian Superleague 2022"]
[Site "Oradea"]
[Date "2022.09.21"]
[Round "1.22"]
[White "Vedmediuc, Serghei"]
[Black "Vajda, Albert"]
[Result "1-0"]
[ECO "B35"]
[WhiteElo "2430"]
[BlackElo "2305"]
[Annotator "TA"]
[PlyCount "61"]
[EventDate "2022.09.21"]
[EventType "team-tourn"]
[EventCountry "ROU"]
[SourceTitle "playchess.com"]
[Source "ChessBase"]
[SourceQuality "1"]
[TimeControl "40/5400+30:1800+30"]

{[%evp 15,61,18,33,46,54,47,47,44,39,-17,-22,-35,-22,-18,-26,-21,0,0,0,12,171,172,164,154,159,149,173,111,254,240,446,179,169,170,177,169,369,336,359,336,489,485,488,471,592,429,433,410]} 1. e4 {[%emt 0:00:04]} c5 {[%emt 0:00:07]} 2. Nf3 {[%emt 0:00:12]} g6 {[%emt 0:00:11]} 3. d4 {[%emt 0:01:03]} cxd4 {[%emt 0:00:12]} 4. Nxd4 {[%emt 0:00:04]} Nc6 {[%emt 0:00:12]} 5. Nc3 {[%emt 0:00:28]} Bg7 {[%emt 0:00:31]} 6. Be3 {[%emt 0:00:19]} Nf6 {[%emt 0:00:16]} 7. Bc4 {[%emt 0:00:16]} O-O {[%emt 0:00:18]} 8. Bb3 {[%emt 0:00:26]} d5 {[%emt 0:00:27]} 9. exd5 {[%emt 0:06:27] B35: Sicilian: Accelerated Dragon with 5 Nc3: main line.} Na5 {[%emt 0:00:24]} 10. Qf3 {[%emt 0:28:49]} Bg4 {[%emt 0:02:38]} 11. Qg3 {[%emt 0:00:10] White is slightly better.} Nxb3 {[%emt 0:00:27]} 12. Nxb3 {[%emt 0:04:10]} ({Better is} 12. axb3 $14 Bh5 13. Qe5) 12... Bf5 $11 {[%emt 0:19:17]} 13. O-O-O {[%emt 0:28:59]} Rc8 $1 {[%emt 0:15:43]} 14. f3 {[%emt 0:08:01]} b5 {[%emt 0:08:20][%cal Bb7b5,Bb5b4,Bb4c3][%mdl 32] Strongly threatening ...b4.} 15. Nd4 {[%emt 0:06:14] [#]} (15. Bxa7 b4 16. Ne4 Qd7 $17) 15... b4 $146 {[%emt 0:02:18]} (15... Bd7 $5 {[%cal Rb5b4]} 16. Ne6 (16. Ndxb5 Qa5 $17) (16. Nc6 Bxc6 17. dxc6 Qe8 $11) 16... fxe6 17. dxe6 Qa5 18. exd7 Nxd7 $11) ({Predecessor:} 15... Bd7 16. Nc6 Bxc6 17. dxc6 Qa5 18. Qg5 Rxc6 19. Qxb5 Qc7 20. Qa4 Rc8 21. Rhe1 Ne8 {0-1 (32) Pikula,D (2393)-Ramoutar,A (2411) Arandjelovac 2021}) 16. Nxf5 {[%emt 0:00:52]} bxc3 {[%emt 0:03:30]} 17. Nxg7 {[%emt 0:00:06]} Kxg7 {[%emt 0:08:29]} (17... cxb2+ $11 18. Kb1 Kxg7) 18. b3 $18 {[%emt 0:01:38]} Qa5 {[%emt 0:01:18] [#] ( -> ...Qa3+)} 19. Kb1 {[%emt 0:00:18] Active counter play!} Rfd8 {[%emt 0:01:33]} 20. Qe5 {[%emt 0:01:55]} Rd6 {[%emt 0:08:07]} 21. Rd4 {[%emt 0:01:13]} ({Resist} 21. a4 Re6 22. Qd4 Rd6 $16) (21. Qxe7 $18 Qa3 22. Bc1) 21... Rb8 {[%emt 0:05:14]} (21... Re6 $16 22. Qg5 Rd6) 22. Rhd1 {[%emt 0:01:12]} Rb5 $2 {[%emt 0:06:09]} (22... Rb7 {was called for.} 23. Rh4 h5) 23. Rc4 {[%emt 0:02:30]} (23. a4 Rb7 24. g4 Re6 $18) (23. Qxe7 $142 {Threatening mate with Bh6+.} Qd8 24. Qxd8 (24. Qxa7 Ra5 $11) 24... Rxd8 25. d6) 23... Rbxd5 {[%emt 0:01:20]} 24. Rxd5 {[%emt 0:00:19] Dancing on a razor blade.} Rxd5 {[%emt 0:00:20]} 25. Qxc3 {[%emt 0:00:18]} Qa3 {[%emt 0:04:10]} (25... Rd1+ {keeps fighting.} 26. Kb2 Qxc3+ 27. Rxc3 Nd5) 26. Rd4 {[%emt 0:00:39] [#] Rxd5 is the strong threat.} Ra5 {[%emt 0:00:23]} 27. Qb2 {[%emt 0:00:10]} Qc5 {[%emt 0:12:06]} (27... Qxb2+ $142 28. Kxb2 Rh5) 28. b4 {[%emt 0:01:23] White is clearly winning.} Qe5 {[%emt 0:00:00][%cal Oe5e3]} 29. Rd3 {[%emt 0:00:14]} ({Weaker is} 29. bxa5 Qxe3 30. Qb4 e6 $18) 29... Qxb2+ {[%emt 0:00:00]} 30. Kxb2 {[%emt 0:00:01]} Rb5 {[%emt 0:00:00]} 31. Kb3 {[%emt 0:00:44] Weighted Error Value: White=0.29 (precise) /Black=0.54} 1-0

[Event "Romanian Superleague 2022"]
[Site "Oradea"]
[Date "2022.09.21"]
[Round "1.23"]
[White "Balla, Tamas-Kristof"]
[Black "Manea, Alexandru"]
[Result "1/2-1/2"]
[ECO "B44"]
[WhiteElo "2325"]
[BlackElo "2326"]
[Annotator "TA"]
[PlyCount "67"]
[EventDate "2022.09.21"]
[EventType "team-tourn"]
[EventCountry "ROU"]
[SourceTitle "playchess.com"]
[Source "ChessBase"]
[SourceQuality "1"]
[TimeControl "40/5400+30:1800+30"]

{[%evp 16,67,12,17,17,16,33,-22,-20,-20,-31,-29,-25,-33,-16,-19,-14,-22,0,0,0,0,2,0,5,0,6,6,1,0,0,0,0,0,0,-4,0,0,0,0,0,0,0,0,0,0,0,0,0,0,0,0,0,0]} 1. e4 {[%emt 0:00:04]} c5 {[%emt 0:01:21]} 2. Nf3 {[%emt 0:00:23][%cal Bg1f3,Bf3d4,Bd4b5][%mdl 32]} e6 {[%emt 0:00:07]} 3. d4 {[%emt 0:00:04]} cxd4 {[%emt 0:00:05]} 4. Nxd4 {[%emt 0:00:04]} Nc6 {[%emt 0:00:07]} 5. Nb5 {[%emt 0:00:05]} d6 {[%emt 0:00:07]} 6. c4 {[%emt 0:00:05]} a6 {[%emt 0:00:11]} 7. Nd4 {[%emt 0:00:29]} Nf6 {[%emt 0:00:07]} 8. Nc3 {[%emt 0:00:08]} Be7 {[%emt 0:09:43]} 9. Be2 {[%emt 0:01:19]} O-O {[%emt 0:01:04] B44: Sicilian: Taimanov: 5 Nb5.} 10. Be3 {[%emt 0:00:21] [#]} Rb8 $146 {[%emt 0:37:14]} ({Predecessor:} 10... Nxd4 11. Qxd4 e5 12. Qb6 Qxb6 13. Bxb6 Bd8 14. Bxd8 Rxd8 15. Kd2 Be6 16. Rhc1 Kf8 17. Ke3 {1-0 (58) Grischuk,A (2777)-Cori,J (2652) Chess.com INT 2020}) 11. f3 {[%emt 0:02:08]} ({White should try} 11. O-O $14) 11... d5 $11 {[%emt 0:03:41]} 12. exd5 {[%emt 0:29:22]} exd5 {[%emt 0:00:08]} 13. Qd2 {[%emt 0:00:06]} dxc4 {[%emt 0:12:03]} 14. Bxc4 {[%emt 0:03:50]} Nxd4 {[%emt 0:02:03]} 15. Qxd4 {[%emt 0:00:40] The position is equal.} b5 {[%emt 0:00:04]} 16. Bb3 {[%emt 0:02:05]} Qxd4 {[%emt 0:04:39]} 17. Bxd4 {[%emt 0:00:15]} Bf5 {[%emt 0:00:02]} 18. Kf2 {[%emt 0:02:39]} Rfd8 {[%emt 0:02:21]} 19. Rhd1 {[%emt 0:01:54]} h5 {[%emt 0:07:43]} 20. Rd2 {[%emt 0:04:28]} Kf8 {[%emt 0:07:07]} 21. Rad1 {[%emt 0:00:31]} Rbc8 {[%emt 0:03:08]} 22. Bb6 {[%emt 0:02:53]} Rxd2+ {[%emt 0:00:27]} 23. Rxd2 {[%emt 0:00:11]} Rc6 {[%emt 0:00:04]} 24. Be3 {[%emt 0:03:12]} Be6 {[%emt 0:00:20]} 25. Bxe6 {[%emt 0:03:29]} Rxe6 {[%emt 0:00:08]} 26. Nd5 {[%emt 0:04:37]} Nxd5 {[%emt 0:01:05]} 27. Rxd5 {[%emt 0:00:59][%mdl 4096] Endgame KRB-KRB} g6 {[%emt 0:01:17]} 28. Ke2 {[%emt 0:03:24]} Ke8 {[%emt 0:00:14]} 29. Kd3 {[%emt 0:00:12]} Rc6 {[%emt 0:03:05]} 30. b3 {[%emt 0:02:45]} Rd6 {[%emt 0:02:55]} 31. Kd4 {[%emt 0:07:07]} Rc6 {[%emt 0:00:56]} 32. Kd3 {[%emt 0:00:16] Inhibits Rc2.} Rd6 {[%emt 0:00:04]} 33. Kd4 {[%emt 0:00:07]} Rc6 {[%emt 0:00:05]} 34. Kd3 {[%emt 0:00:03] Inhibits Rc2. An even fight not without its subleties.  Weighted Error Value: White=0.05 (flawless) /Black=0.03 (flawless)} 1/2-1/2